fUST/lending_fUST_20240628
["ID","MTS","AMOUNT","RATE_DAILY","PERIOD"]
[330498039,1719515447252,-500.0,0.00043835,2]
[330498040,1719515447262,-500.0,0.00043835,120]
[330498041,1719515447271,-500.0,0.00043835,120]
[330498042,1719515447280,-500.0,0.00043835,120]
[330498043,1719515447290,-1345.93,0.00043835,120]
[330498044,1719515447299,-500.0,0.00043835,120]
[330498045,1719515447308,-500.0,0.00043835,120]
[330498046,1719515447320,-500.0,0.00043835,120]
[330498047,1719515447329,-500.0,0.00043835,2]
[330498048,1719515447338,-500.0,0.00043835,120]
[330498049,1719515447348,-250.0,0.00043835,120]
[330498050,1719515447357,-500.0,0.00043835,120]
[330498051,1719515447367,-500.0,0.00043835,120]
[330498052,1719515447376,-633.32,0.00043835,120]
[330498053,1719515447385,-500.0,0.00043835,120]
[330498054,1719515447396,-500.0,0.00043835,120]
[330498055,1719515447405,-500.0,0.00043835,120]
[330498056,1719515447415,-500.0,0.00043835,120]
[330498057,1719515447424,-500.0,0.00043835,120]
[330498058,1719515447434,-500.0,0.00043835,120]
[330498059,1719515447443,-500.0,0.00043835,120]
[330498060,1719515447452,-606.68573716,0.00043835,120]
[330498061,1719515447462,-500.0,0.00043835,120]
[330498062,1719515447471,-500.0,0.00043835,120]
[330498063,1719515447481,-500.0,0.00043835,120]
[330498065,1719515447490,-500.0,0.00043835,120]
[330498067,1719515447500,-500.0,0.00043835,120]
[330498069,1719515447509,-500.0,0.00043835,120]
[330498071,1719515447518,-500.0,0.00043835,120]
[330498073,1719515447526,-500.0,0.00043835,120]
[330498074,1719515447536,-500.0,0.00043835,120]
[330498076,1719515447545,-589.56,0.00043835,120]
[330498078,1719515447555,-500.0,0.00043835,120]
[330498080,1719515447564,-500.0,0.00043835,120]
[330498082,1719515447574,-500.0,0.00043835,120]
[330498084,1719515447583,-500.0,0.00043835,120]
[330498085,1719515447592,-500.0,0.00043835,120]
[330498087,1719515447603,-500.0,0.00043835,120]
[330498088,1719515447613,-500.0,0.00043835,120]
[330498089,1719515447623,-500.0,0.00043835,120]
[330498090,1719515447632,-497.50245028,0.00043835,120]
[330498091,1719515447643,-500.0,0.00043835,120]
[330498092,1719515447651,-500.0,0.00043835,120]
[330498093,1719515447661,-1094.26,0.00043835,120]
[330498094,1719515447670,-611.53,0.00043835,120]
[330498095,1719515447679,-500.0,0.00043835,120]
[330498096,1719515447688,-500.0,0.00043835,120]
[330498097,1719515447698,-500.0,0.00043835,120]
[330498098,1719515447708,-500.0,0.00043835,120]
[330498099,1719515447716,-500.0,0.00043835,120]
[330498100,1719515447726,-500.0,0.00043835,120]
[330498101,1719515447735,-500.0,0.00043835,120]
[330498102,1719515447745,-609.56,0.00043835,120]
[330498103,1719515447754,-500.0,0.00043835,120]
[330498104,1719515447763,-793.34,0.00043835,120]
[330498105,1719515447773,-500.0,0.00043835,120]
[330498106,1719515447782,-500.0,0.00043835,120]
[330498107,1719515447792,-500.0,0.00043835,120]
[330498108,1719515447801,-500.0,0.00043835,120]
[330498109,1719515447810,-500.0,0.00043835,120]
[330498110,1719515447820,-500.0,0.00043835,120]
[330498111,1719515447829,-525.08476577,0.00043835,120]
[330498112,1719515447839,-500.0,0.00043835,120]
[330498113,1719515447849,-500.0,0.00043835,120]
[330498114,1719515447858,-500.0,0.00043835,120]
[330498115,1719515447867,-500.0,0.00043835,120]
[330498116,1719515447876,-500.0,0.00043835,120]
[330498117,1719515447886,-485.47220082,0.00043835,120]
[330498118,1719515447896,-500.0,0.00043835,120]
[330498119,1719515447906,-500.0,0.00043835,120]
[330498120,1719515447915,-1640.35,0.00043835,120]
[330498121,1719515447925,-358.86284151,0.00043835,120]
[330498122,1719515447934,-623.77,0.00043835,120]
[330498123,1719515447944,-500.0,0.00043835,120]
[330498124,1719515447953,-500.0,0.00043835,120]
[330498125,1719515447963,-500.0,0.00043835,120]
[330498126,1719515447972,-500.0,0.00043835,120]
[330498127,1719515447982,-500.0,0.00043835,120]
[330498128,1719515447991,-500.0,0.00043835,120]
[330498129,1719515448000,-554.44265655,0.00043835,120]
[330498130,1719515448010,-500.0,0.00043835,120]
[330498131,1719515448019,-500.0,0.00043835,120]
[330498132,1719515448028,-500.0,0.00043835,120]
[330498133,1719515448037,-500.0,0.00043835,120]
[330498134,1719515448047,-500.0,0.00043835,120]
[330498135,1719515448056,-500.0,0.00043835,120]
[330498136,1719515448066,-500.0,0.00043835,120]
[330498137,1719515448076,-501.28,0.00043835,120]
[330498138,1719515448086,-500.0,0.00043835,120]
[330498139,1719515448095,-500.0,0.00043835,120]
[330498140,1719515448107,-500.0,0.00043835,120]
[330498141,1719515448118,-2062.59,0.00043835,120]
[330498142,1719515448127,-500.0,0.00043835,120]
[330498143,1719515448136,-685.46,0.00043835,120]
[330498144,1719515448150,-500.0,0.00043835,120]
[330498145,1719515448160,-500.0,0.00043835,120]
[330498146,1719515448169,-626.18,0.00043835,120]
[330498147,1719515448183,-528.63052295,0.00043835,120]
[330498148,1719515448192,-500.0,0.00043835,120]
[330498149,1719515448202,-400.497909,0.00043835,14]
[330498150,1719515448211,-1696.03,0.00043835,120]
[330498151,1719515448220,-502.53263086,0.00043835,120]
[330498152,1719515448230,-400.497909,0.00043835,14]
[330498153,1719515448239,-500.0,0.00043835,120]
[330498154,1719515448248,-189.82876208,0.00043835,120]
[330498155,1719515448258,-500.0,0.00043835,120]
[330498156,1719515448268,-400.497909,0.00043835,14]
[330498157,1719515448278,-400.497905,0.00043835,14]
[330498158,1719515448287,-870.02,0.00043835,120]
[330498159,1719515448296,-500.0,0.00043835,120]
[330498160,1719515448305,-500.0,0.00043835,120]
[330498161,1719515448314,-1454.34,0.00043835,120]
[330498162,1719515448323,-500.0,0.00043835,120]
[330498163,1719515448332,-500.0,0.00043835,120]
[330498164,1719515448342,-296.659091,0.00043835,14]
[330498165,1719515448352,-296.659091,0.00043835,14]
[330498166,1719515448361,-296.659091,0.00043835,14]
[330498167,1719515448371,-2133.1,0.00043835,120]
[330498168,1719515448380,-561.46484593,0.00043835,120]
[330498169,1719515448389,-500.0,0.00043835,120]
[330498170,1719515448400,-500.0,0.00043835,120]
[330498171,1719515448409,-296.659091,0.00043835,14]
[330498172,1719515448418,-296.659091,0.00043835,14]
[330498173,1719515448428,-500.0,0.00043835,120]
[330498174,1719515448437,-296.65908666,0.00043835,14]
[330498175,1719515448447,-167.83656753,0.00043835,120]
[330498176,1719515448457,-1275.58,0.00043835,120]
[330498177,1719515448466,-500.0,0.00043835,120]
[330498178,1719515448475,-260.13160493,0.00043835,120]
[330498179,1719515448484,-500.0,0.00043835,120]
[330498180,1719515448494,-252.12096388,0.00043835,120]
[330498181,1719515448503,-17954.05,0.00043835,120]
[330498182,1719515448513,-500.0,0.00043835,120]
[330498183,1719515448522,-500.0,0.00043835,120]
[330498184,1719515448531,-500.0,0.00043835,120]
[330498185,1719515448540,-1319.76,0.00043835,120]
[330498186,1719515448550,-500.0,0.00043835,120]
[330498187,1719515448559,-500.0,0.00043835,120]
[330498188,1719515448568,-1976.32,0.00043835,120]
[330498189,1719515448578,-500.0,0.00043835,120]
[330498190,1719515448586,-500.0,0.00043835,120]
[330498191,1719515448596,-500.0,0.00043835,30]
[330498192,1719515448605,-500.0,0.00043835,120]
[330498193,1719515448614,-394.50894618,0.00043835,120]
[330498194,1719515448624,-500.0,0.00043835,120]
[330498195,1719515448633,-500.0,0.00043835,120]
[330498196,1719515448642,-11918.4,0.00043835,120]
[330498197,1719515448652,-500.0,0.00043835,30]
[330498198,1719515448661,-500.0,0.00043835,120]
[330498199,1719515448671,-500.0,0.00043835,120]
[330498200,1719515448680,-515.88349962,0.00043835,120]
[330498201,1719515448690,-1443.6,0.00043835,120]
[330498202,1719515448700,-500.0,0.00043835,120]
[330498203,1719515448710,-500.0,0.00043835,120]
[330498204,1719515448719,-1071.18,0.00043835,120]
[330498205,1719515448729,-500.0,0.00043835,120]
[330498206,1719515448837,-500.0,0.00043835,120]
[330498207,1719515448847,-500.0,0.00043835,120]
[330498208,1719515448856,-10764.71,0.00043835,120]
[330498209,1719515448865,-500.0,0.00043835,120]
[330498210,1719515448874,-200.76713223,0.00043835,120]
[330498211,1719515448884,-500.0,0.00043835,120]
[330498212,1719515448894,-500.0,0.00043835,120]
[330498213,1719515448903,-500.0,0.00043835,120]
[330498214,1719515448913,-804.06,0.00043835,120]
[330498215,1719515448923,-513.32960817,0.00043835,120]
[330498216,1719515448933,-500.0,0.00043835,120]
[330498217,1719515448943,-43405.44,0.00043835,120]
[330498218,1719515448952,-500.0,0.00043835,120]
[330498219,1719515448962,-860.19,0.00043835,120]
[330498220,1719515448971,-512.11877166,0.00043835,120]
[330498221,1719515448980,-521.25,0.00043835,120]
[330498222,1719515448990,-500.0,0.00043835,120]
[330498223,1719515449000,-500.0,0.00043835,120]
[330498224,1719515449009,-500.0,0.00043835,120]
[330498225,1719515449018,-500.0,0.00043835,120]
[330498226,1719515449027,-287.92791697,0.00043835,120]
[330498227,1719515449037,-500.0,0.00043835,120]
[330498228,1719515449047,-500.0,0.00043835,120]
[330498229,1719515449056,-179.16474562,0.00043835,120]
[330498230,1719515449065,-511.20601466,0.00043835,120]
[330498231,1719515449075,-500.0,0.00043835,120]
[330498232,1719515449084,-500.0,0.00043835,120]
[330498233,1719515449093,-417.3050302,0.00043835,120]
[330498234,1719515449103,-500.0,0.00043835,120]
[330498235,1719515449113,-6310.61,0.00043835,120]
[330498236,1719515449127,-500.0,0.00043835,120]
[330498237,1719515449136,-500.0,0.00043835,120]
[330498238,1719515449145,-1150.33,0.00043835,120]
[330498239,1719515449155,-4304.38,0.00043835,21]
[330498240,1719515449165,-500.0,0.00043835,120]
[330498241,1719515449175,-500.0,0.00043835,120]
[330498242,1719515449186,-500.0,0.00043835,120]
[330498243,1719515449201,-500.0,0.00043835,120]
[330498244,1719515449210,-1250.01,0.00043835,120]
[330498245,1719515449220,-634.78486251,0.00043835,120]
[330498246,1719515449229,-512.60755906,0.00043835,120]
[330498247,1719515449238,-500.0,0.00043835,120]
[330498248,1719515449247,-532.42423929,0.00043835,120]
[330498249,1719515449256,-506.46252124,0.00043835,120]
[330498250,1719515449266,-3807.6,0.00043835,120]
[330498251,1719515449275,-2769.68,0.00043835,120]
[330498252,1719515449285,-758.84,0.00043835,120]
[330498253,1719515449295,-500.0,0.00043835,120]
[330498254,1719515449305,-753.474052,0.00043835,14]
[330498255,1719515449315,-753.474052,0.00043835,14]
[330498256,1719515449324,-753.474052,0.00043835,14]
[330498257,1719515449333,-500.0,0.00043835,120]
[330498258,1719515449343,-509.99235845,0.00043835,120]
[330498259,1719515449353,-753.474052,0.00043835,14]
[330498260,1719515449362,-650.25,0.00043835,120]
[330498261,1719515449371,-753.474052,0.00043835,14]
[330498262,1719515449380,-531.47256152,0.00043835,120]
[330498263,1719515449390,-323.75,0.00043835,7]
[330498264,1719515449401,-753.474049,0.00043835,14]
[330498265,1719515449413,-521.17357757,0.00043835,120]
[330498266,1719515449422,-500.0,0.00043835,120]
[330498267,1719515449431,-151.0,0.00043835,14]
[330498268,1719515449440,-151.0,0.00043835,14]
[330498269,1719515449450,-218.573626,0.00043835,14]
[330498270,1719515449460,-500.0,0.00043835,120]
[330498271,1719515449469,-7381.25,0.00043835,120]
[330498272,1719515449478,-500.0,0.00043835,120]
[330498273,1719515449488,-500.0,0.00043835,120]
[330498274,1719515449497,-334.27877094,0.00043835,120]
[330498275,1719515449508,-504.94883956,0.00043835,120]
[330498276,1719515449517,-500.0,0.00043835,120]
[330498277,1719515449528,-500.0,0.00043835,120]
[330498278,1719515449538,-6554.12,0.00043835,120]
[330498279,1719515449548,-9999.0,0.00043835,14]
[330498280,1719515449558,-500.0,0.00043835,120]
[330498281,1719515449568,-500.0,0.00043835,120]
[330498282,1719515449577,-500.0,0.00043835,120]
[330498283,1719515449586,-1652.98,0.00043835,120]
[330498284,1719515449596,-500.0,0.00043835,120]
[330498285,1719515449605,-1652.98,0.00043835,120]
[330498286,1719515449615,-1652.98,0.00043835,120]
[330498287,1719515449624,-500.0,0.00043835,120]
[330498288,1719515449633,-1652.98,0.00043835,120]
[330498289,1719515449642,-1652.98,0.00043835,120]
[330498290,1719515449656,-1652.98,0.00043835,120]
[330498291,1719515449666,-1652.98,0.00043835,120]
[330498292,1719515449675,-1652.98,0.00043835,120]
[330498293,1719515449684,-1652.98,0.00043835,120]
[330498294,1719515449694,-501.73099173,0.00043835,120]
[330498295,1719515449703,-1652.98,0.00043835,120]
[330498296,1719515449713,-1652.98,0.00043835,120]
[330498297,1719515449723,-514.67600685,0.00043835,120]
[330498298,1719515449732,-1652.98,0.00043835,120]
[330498299,1719515449741,-500.0,0.00043835,120]
[330498300,1719515449751,-1652.98,0.00043835,120]
[330498301,1719515449760,-1652.98,0.00043835,120]
[330498302,1719515449769,-1652.98,0.00043835,120]
[330498303,1719515449779,-1652.98,0.00043835,120]
[330498304,1719515449788,-500.0,0.00043835,120]
[330498305,1719515449798,-1652.98,0.00043835,120]
[330498306,1719515449808,-1652.98,0.00043835,120]
[330498307,1719515449817,-1652.98,0.00043835,120]
[330498308,1719515449826,-1652.98,0.00043835,120]
[330498309,1719515449836,-1286.4,0.00043835,120]
[330498310,1719515449846,-1652.98,0.00043835,120]
[330498311,1719515449855,-1652.98,0.00043835,120]
[330498312,1719515449865,-500.0,0.00043835,120]
[330498313,1719515449875,-1652.98,0.00043835,120]
[330498314,1719515449884,-1653.05778538,0.00043835,120]
[330498315,1719515449894,-15797.98,0.00043835,120]
[330498316,1719515449906,-500.0,0.00043835,120]
[330498317,1719515449915,-500.0,0.00043835,120]
[330498318,1719515449924,-342.76363488,0.00043835,120]
[330498319,1719515449933,-500.0,0.00043835,120]
[330498320,1719515449942,-239.123114,0.00043835,14]
[330498321,1719515449951,-500.0,0.00043835,120]
[330498322,1719515449960,-500.0,0.00043835,120]
[330498323,1719515449970,-781.1,0.00043835,120]
[330498324,1719515449979,-239.123114,0.00043835,14]
[330498325,1719515449989,-239.123114,0.00043835,14]
[330498326,1719515449999,-509.48698313,0.00043835,120]
[330498327,1719515450008,-500.0,0.00043835,120]
[330498328,1719515450017,-239.123114,0.00043835,14]
[330498329,1719515450027,-265.06886552,0.00043835,120]
[330498330,1719515450036,-239.123114,0.00043835,14]
[330498331,1719515450046,-239.12312,0.00043835,14]
[330498332,1719515450056,-500.0,0.00043835,120]
[330498333,1719515450066,-521.35,0.00043835,120]
[330498334,1719515450076,-500.0,0.00043835,120]
[330498335,1719515450087,-500.0,0.00043835,120]
[330498336,1719515450097,-500.0,0.00043835,120]
[330498337,1719515450111,-730.499527,0.00043835,14]
[330498338,1719515450121,-730.499527,0.00043835,14]
[330498339,1719515450131,-14826.34,0.00043835,120]
[330498340,1719515450140,-376.796004,0.00043835,14]
[330498341,1719515450151,-376.796004,0.00043835,14]
[330498342,1719515450160,-14826.34,0.00043835,120]
[330498343,1719515450169,-14826.34,0.00043835,120]
[330498344,1719515450178,-14826.34,0.00043835,120]
[330498345,1719515450191,-500.0,0.00043835,120]
[330498346,1719515450202,-14826.34,0.00043835,120]
[330498347,1719515450212,-730.499527,0.00043835,14]
[330498348,1719515450221,-730.499524,0.00043835,14]
[330498349,1719515450230,-14826.34,0.00043835,120]
[330498350,1719515450240,-376.796004,0.00043835,14]
[330498351,1719515450250,-14826.34,0.00043835,120]
[330498352,1719515450261,-376.79600326,0.00043835,14]
[330498353,1719515450270,-500.0,0.00043835,120]
[330498354,1719515450280,-919.28,0.00043835,120]
[330498355,1719515450290,-500.0,0.00043835,120]
[330498356,1719515450300,-11858.75,0.00043835,120]
[330498357,1719515450309,-14826.34,0.00043835,120]
[330498358,1719515450319,-14826.34,0.00043835,120]
[330498359,1719515450329,-14826.34,0.00043835,120]
[330498360,1719515450338,-14826.34,0.00043835,120]
[330498361,1719515450348,-14826.34,0.00043835,120]
[330498362,1719515450358,-500.0,0.00043835,120]
[330498363,1719515450367,-710.06,0.00043835,14]
[330498364,1719515450376,-9657.70881706,0.00043835,120]
[330498365,1719515450689,-244.97894054,0.00039393,4]
[330498366,1719515450699,-2564.48059518,0.00043835,120]
[330498367,1719515452281,1449.16756378,0.00027766,2]
[330498368,1719515453895,597.95617303,0.00027766,2]
[330498369,1719515470866,477.00236967,0.00027766,2]
[330498370,1719515522886,3604.97547637,0.00022878,2]
[330498376,1719516444151,-382.61307245,0.00016255,2]
[330498377,1719516444223,-1756.48103849,0.00016255,2]
[330498378,1719516445090,-4836.25750203,0.00016255,2]
[330498379,1719516445119,-1556.73599433,0.00019164,2]
[330498380,1719516445143,-300.0,0.00020995,2]
[330498381,1719516445166,-300.0,0.00020995,2]
[330498382,1719516445189,-7256.42175664,0.00020996,2]
[330498383,1719516445212,-157.444542,0.00021096,2]
[330498384,1719516445234,-1824.1659318,0.00021749,2]
[330498385,1719516445256,-506.32231,0.00021916,2]
[330498386,1719516445277,-166.666666,0.00021918,2]
[330498387,1719516445300,-976.17716488,0.00022778,2]
[330498388,1719516445321,-300.0,0.00022838,2]
[330498389,1719516445342,-5036.91508975,0.00022878,2]
[330498390,1719516454099,-10583.42713572,0.00022878,2]
[330498391,1719516454121,-181.45676091,0.00022878,2]
[330498392,1719516454144,-179.39588634,0.00022941,2]
[330498393,1719516454165,-195.36861794,0.00022943,2]
[330498394,1719516454187,-420.0,0.00023094,2]
[330498395,1719516454207,-3480.00705137,0.00023353,2]
[330498396,1719516454229,-16990.545622,0.00023455,2]
[330498398,1719516548564,-3921.07825914,0.00019703,2]
[330498399,1719516548586,-307.67501459,0.00019703,2]
[330498400,1719516548605,-181.58035626,0.00019703,2]
[330498401,1719516548625,-3964.77364201,0.00022022,2]
[330498402,1719516548645,-24900.0,0.0002372,2]
[330498403,1719516548665,-152.81011158,0.00024097,2]
[330498404,1719516548684,-153.69410284,0.00024102,2]
[330498405,1719516548704,-318.18757632,0.00024481,2]
[330498406,1719516548724,-166.666666,0.00024482,2]
[330498407,1719516548743,-153.69410284,0.00024962,2]
[330498408,1719516548902,-155.91132706,0.0002497,2]
[330498409,1719516548922,-3126.93373757,0.00025501,4]
[330498410,1719516548941,-1749.46392446,0.00025501,2]
[330498411,1719516548962,-3480.00705136,0.00025612,2]
[330498412,1719516548988,-154.95021002,0.00025762,2]
[330498413,1719516549007,-250.0,0.00025763,2]
[330498414,1719516549027,-1160.66139538,0.00025869,2]
[330498415,1719516549047,-231.79009792,0.00025902,2]
[330498416,1719516549068,-155.91132706,0.00025905,2]
[330498417,1719516549089,-153.69410284,0.00025923,2]
[330498418,1719516549110,-155.91132706,0.0002651,2]
[330498419,1719516549132,-155.91132706,0.00026525,2]
[330498420,1719516549152,-490.47369441,0.00026574,2]
[330498421,1719516549179,-153.69410284,0.0002678,2]
[330498422,1719516549202,-517.02244669,0.00026848,2]
[330498423,1719516549223,-1103.33519031,0.00026848,2]
[330498424,1719516549245,-153.69410284,0.00026944,2]
[330498425,1719516549269,-153.69410284,0.00027127,2]
[330498426,1719516549289,-1044.22396493,0.00027184,2]
[330498427,1719516549309,-947.85332232,0.00027184,2]
[330498428,1719516549329,-947.85332232,0.00027184,2]
[330498429,1719516549348,-811.85165709,0.00027194,2]
[330498430,1719516550099,-30.69500619,0.00027194,2]
[330498431,1719516550124,-597.45420845,0.00027194,2]
[330498432,1719516550145,-732.32743916,0.00027194,2]
[330498433,1719516550165,-154.95021002,0.0002733,2]
[330498434,1719516550186,-402.7993587,0.00027399,2]
[330498435,1719516550216,-531.32438802,0.00027399,2]
[330498436,1719516550237,-531.32438802,0.00027399,2]
[330498437,1719516550257,-401.79826544,0.00027399,2]
[330498438,1719516550279,-153.69410284,0.00027552,2]
[330498439,1719516550302,-2341.91538723,0.00027872,2]
[330498440,1719516552879,152.04592602,0.00019165,2]
[330498441,1719516555122,-208.77979888,0.00019165,2]
[330498442,1719516558255,-1138.09166413,0.00027872,2]
[330498443,1719516558276,-153.69410284,0.00028285,2]
[330498444,1719516558295,-214.75526141,0.00028577,2]
[330498445,1719516558315,-157.444542,0.00028822,2]
[330498446,1719516558334,-153.0,0.00028964,2]
[330498447,1719516558355,-153.0,0.00028964,2]
[330498448,1719516558377,-153.0,0.00028964,2]
[330498449,1719516558398,-153.0,0.00028964,2]
[330498450,1719516558417,-153.0,0.00028964,2]
[330498451,1719516558439,-153.0,0.00028964,2]
[330498452,1719516558459,-153.0,0.00028964,2]
[330498453,1719516558478,-153.0,0.00028964,2]
[330498454,1719516558501,-153.0,0.00028964,2]
[330498455,1719516558522,-153.0,0.00028964,2]
[330498456,1719516558543,-153.0,0.00028964,2]
[330498457,1719516558562,-153.0,0.00028964,2]
[330498458,1719516558587,-153.0,0.00028964,2]
[330498459,1719516558606,-153.0,0.00028964,2]
[330498460,1719516558626,-153.0,0.00028964,2]
[330498461,1719516558645,-153.0,0.00028965,2]
[330498462,1719516558665,-153.0,0.00028965,2]
[330498463,1719516558684,-153.0,0.00028965,2]
[330498464,1719516558705,-153.0,0.00028965,2]
[330498465,1719516558726,-153.0,0.00028965,2]
[330498466,1719516558746,-153.0,0.00028965,2]
[330498467,1719516558764,-153.0,0.00028965,2]
[330498468,1719516558784,-153.0,0.00028965,2]
[330498469,1719516558804,-153.0,0.00028965,2]
[330498470,1719516558824,-153.0,0.00028965,2]
[330498471,1719516558843,-153.0,0.00028965,2]
[330498472,1719516558864,-153.0,0.00028965,2]
[330498473,1719516558884,-153.0,0.00028965,2]
[330498474,1719516558904,-153.0,0.00028965,2]
[330498475,1719516558926,-153.0,0.00028965,2]
[330498476,1719516558945,-153.0,0.00028965,2]
[330498477,1719516558964,-153.0,0.00028965,2]
[330498478,1719516558983,-153.0,0.00028965,2]
[330498479,1719516559003,-153.0,0.00028965,2]
[330498480,1719516559022,-153.0,0.00028965,2]
[330498481,1719516559042,-153.0,0.00028965,2]
[330498482,1719516559061,-153.0,0.00028965,2]
[330498483,1719516559082,-153.0,0.00028965,2]
[330498484,1719516559103,-214.75526141,0.00028973,2]
[330498485,1719516559123,-153.69410284,0.00029522,2]
[330498486,1719516559145,-5953.2598562,0.00029762,7]
[330498487,1719516559166,-239.66852687,0.00029772,2]
[330498488,1719516559185,-300.32661389,0.00029772,2]
[330498489,1719516559204,-154.82195475,0.00029772,2]
[330498490,1719516559223,-154.82195475,0.00029772,2]
[330498491,1719516559242,-154.82195475,0.00029793,2]
[330498492,1719516559261,-157.2456885,0.00029793,2]
[330498493,1719516559280,-154.91476285,0.00029793,2]
[330498494,1719516559299,-154.82195475,0.00029793,2]
[330498495,1719516559318,-154.82195475,0.00029793,2]
[330498496,1719516559337,-457.45943987,0.00029803,2]
[330498497,1719516559356,-208.86720996,0.00029803,2]
[330498498,1719516559376,-154.88382785,0.00029823,2]
[330498499,1719516559397,-182.33432574,0.00029861,2]
[330498500,1719516559418,-205.45153777,0.00029893,11]
[330498501,1719516559439,-162.125945,0.000299,2]
[330498502,1719516559457,-199.583644,0.000299,2]
[330498503,1719516559478,-153.69410284,0.0002998,2]
[330498504,1719516559501,-177.63352354,0.0003,2]
[330498505,1719516559521,-1811.43554674,0.00030131,2]
[330498506,1719516565642,402.7993587,0.00027194,2]
[330498507,1719516584798,164.53895357,0.0002323,2]
[330498508,1719516586831,321.56686721,0.0002323,2]
[330498509,1719516589718,796.37419199,0.0002323,4]
[330498510,1719516594737,4.06358892,0.0002323,2]
[330498511,1719516594759,480.75577356,0.0002323,2]
[330498512,1719516594795,154.82195475,0.0002323,2]
[330498513,1719516595443,154.88382167,0.0002323,2]
[330498514,1719516595576,346.2807753,0.0002323,2]
[330498515,1719516596196,264.90555631,0.0002323,2]
[330498516,1719516600320,346.85156829,0.0002323,2]
[330498517,1719516600343,228.10280662,0.0002323,2]
[330498607,1719516634243,-372.89894741,0.0002323,2]
[330498609,1719516634252,-213.33846256,0.0002323,2]
[330498611,1719516634264,-203.63473264,0.0002323,2]
[330498613,1719516634273,-200.45493132,0.0002323,2]
[330498615,1719516634283,-106.21356755,0.0002323,2]
[330498718,1719516641539,-49.31552369,0.0002323,2]
[330498719,1719516641549,-182.33432574,0.0002323,2]
[330498720,1719516641559,-260.12071393,0.0002323,2]
[330498721,1719516641570,-529.44140801,0.0002323,2]
[330498722,1719516641580,-239.66852687,0.00027399,2]
[330498723,1719516641590,-154.86835263,0.00027999,2]
[330498724,1719516641601,-1668.57150462,0.00030131,2]
[330498725,1719516641614,-153.69410284,0.00030647,7]
[330498726,1719516641623,-153.69410284,0.00031218,7]
[330498727,1719516641633,-153.69410284,0.00031418,7]
[330498728,1719516641643,-3480.00705136,0.0003239,2]
[330498729,1719516641652,-854.15501927,0.000324,2]
[330498730,1719516641662,-388.95,0.0003248,3]
[330498731,1719516641671,-194.48,0.0003248,3]
[330498732,1719516641681,-583.46,0.0003249,3]
[330498733,1719516641691,-5673.32,0.0003249,3]
[330498734,1719516641702,-67983.9249134,0.0003249,3]
[330498735,1719516641711,-2976.62992811,0.000325,7]
[330498736,1719516641721,-13931.72435199,0.000325,60]
[330498737,1719516641733,-1433.31324579,0.000325,60]
[330498738,1719516641745,-520.28485859,0.000325,60]
[330498739,1719516641756,-1759.85195,0.000325,60]
[330498740,1719516641769,-20775.912144,0.000325,60]
[330498756,1719516644482,-8641.45520818,0.000325,60]
[330498758,1719516644494,-1725.07315766,0.000325,60]
[330498759,1719516644505,-366.47414366,0.000325,60]
[330498760,1719516644517,-524.7988592,0.000325,60]
[330498761,1719516644532,-4364.56910704,0.000325,60]
[330498778,1719516647105,-154.82195475,0.00028157,2]
[330498779,1719516647115,-1120.05515015,0.00030228,30]
[330498780,1719516647124,-8789.77002883,0.000325,60]
[330498782,1719516648324,-1707.53396171,0.000325,60]
[330498794,1719517646146,-640.24493648,0.00018899,2]